lending/lending_fUSD_20240512
["ID","MTS","AMOUNT","RATE_DAILY","PERIOD"]
[326907275,1715555439067,-500.0,0.00012328,2]
[326907276,1715555439076,-3939.28,0.00012328,2]
[326907277,1715555439085,-1727.88,0.00012328,2]
[326907278,1715555439095,-500.0,0.00012328,2]
[326907279,1715555439105,-1751.44531465,0.00012328,2]
[326907280,1715555439117,-2187.83468535,0.00012328,2]
[326907281,1715555439127,-1727.88,0.00012328,2]
[326907282,1715555439135,-927.90402386,0.00012328,2]
[326907283,1715555439146,-420.25335452,0.00012328,2]
[326907284,1715555439158,-1284.46871091,0.00012328,2]
[326907285,1715555439169,-419.6410628,0.00012328,2]
[326907286,1715555439181,-305.4913623,0.00012328,2]
[326907287,1715555439193,-581.52148561,0.00012328,2]
[326907288,1715555439202,-1727.88,0.00012328,2]
[326907289,1715555439211,-3939.28,0.00012328,2]
[326907290,1715555439221,-1727.88,0.00012328,2]
[326907291,1715555439231,-3939.28,0.00012328,2]
[326907292,1715555439240,-1727.88,0.00012328,2]
[326907293,1715555439249,-1727.88,0.00012328,2]
[326907294,1715555439259,-1727.88,0.00012328,2]
[326907295,1715555439268,-1643.79,0.00012328,2]
[326907296,1715555439277,-1643.79,0.00012328,2]
[326907297,1715555439287,-1643.79,0.00012328,2]
[326907298,1715555439296,-500.0,0.00012328,2]
[326907299,1715555439305,-1643.79,0.00012328,2]
[326907300,1715555439314,-500.0,0.00012328,2]
[326907301,1715555439323,-1643.79,0.00012328,2]
[326907302,1715555439333,-500.0,0.00012328,2]
[326907303,1715555439342,-500.0,0.00012328,2]
[326907304,1715555439351,-500.0,0.00012328,2]
[326907305,1715555439371,-500.0,0.00012328,2]
[326907306,1715555439394,-500.0,0.00012328,2]
[326907307,1715555439419,-500.0,0.00012328,2]
[326907308,1715555439442,-829.4,0.00012328,2]
[326907309,1715555439465,-829.4,0.00012328,2]
[326907310,1715555439487,-829.4,0.00012328,2]
[326907311,1715555439509,-829.4,0.00012328,2]
[326907312,1715555439521,-829.4,0.00012328,2]
[326907313,1715555439531,-829.4,0.00012328,2]
[326907314,1715555439540,-829.4,0.00012328,2]
[326907315,1715555439549,-829.4,0.00012328,2]
[326907316,1715555439559,-500.0,0.00012328,2]
[326907317,1715555439568,-500.0,0.00012328,2]
[326907318,1715555439578,-829.4,0.00012328,2]
[326907319,1715555439588,-500.0,0.00012328,2]
[326907320,1715555439597,-500.0,0.00012328,2]
[326907321,1715555439606,-500.0,0.00012328,2]
[326907322,1715555439616,-500.72508033,0.00012328,2]
[326907323,1715555439625,-9734.44,0.00012328,2]
[326907324,1715555439634,-9734.44,0.00012328,2]
[326907325,1715555439644,-1907.2,0.00012328,2]
[326907326,1715555439653,-1907.2,0.00012328,2]
[326907327,1715555439663,-3246.59345349,0.00012328,2]
[326907328,1715555439675,-6487.84654651,0.00012328,2]
[326907329,1715555439684,-1907.2,0.00012328,2]
[326907330,1715555439694,-9734.44,0.00012328,2]
[326907331,1715555439703,-1907.2,0.00012328,2]
[326907332,1715555439713,-9734.44,0.00012328,2]
[326907333,1715555439723,-1907.2,0.00012328,2]
[326907334,1715555439732,-9734.44,0.00012328,2]
[326907335,1715555439742,-9734.44,0.00012328,2]
[326907336,1715555439752,-963.49,0.00012328,2]
[326907337,1715555439762,-963.49,0.00012328,2]
[326907338,1715555439772,-963.49,0.00012328,2]
[326907339,1715555439782,-963.49,0.00012328,2]
[326907340,1715555439792,-500.0,0.00012328,2]
[326907341,1715555439802,-963.49,0.00012328,2]
[326907342,1715555439811,-606.23967928,0.00012328,2]
[326907343,1715555439821,-1159.84,0.00012328,2]
[326907344,1715555439831,-1159.84,0.00012328,2]
[326907345,1715555439840,-1159.84,0.00012328,2]
[326907346,1715555439850,-1159.84,0.00012328,2]
[326907347,1715555439861,-1159.84,0.00012328,2]
[326907348,1715555439871,-1159.84,0.00012328,2]
[326907349,1715555439880,-1159.84,0.00012328,2]
[326907350,1715555439889,-1159.84,0.00012328,2]
[326907351,1715555439899,-1159.84,0.00012328,2]
[326907352,1715555439908,-500.0,0.00012328,2]
[326907353,1715555439918,-500.0,0.00012328,2]
[326907354,1715555439931,-500.0,0.00012328,2]
[326907355,1715555439941,-500.0,0.00012328,2]
[326907356,1715555439950,-500.0,0.00012328,2]
[326907357,1715555439959,-500.0,0.00012328,2]
[326907358,1715555439970,-506.27512355,0.00012328,2]
[326907359,1715555439979,-500.0,0.00012328,2]
[326907360,1715555439989,-500.0,0.00012328,2]
[326907361,1715555439999,-500.0,0.00012328,2]
[326907362,1715555440011,-500.0,0.00012328,2]
[326907363,1715555440021,-500.0,0.00012328,2]
[326907364,1715555440031,-1577.65,0.00012328,2]
[326907365,1715555440041,-1577.65,0.00012328,2]
[326907366,1715555440051,-1577.65,0.00012328,2]
[326907367,1715555440061,-1577.65,0.00012328,2]
[326907368,1715555440071,-1577.65,0.00012328,2]
[326907369,1715555440080,-526.40263207,0.00012328,2]
[326907370,1715555440090,-2145.25,0.00012328,2]
[326907371,1715555440099,-2145.25,0.00012328,2]
[326907372,1715555440109,-2145.25,0.00012328,2]
[326907373,1715555440119,-2145.25,0.00012328,2]
[326907374,1715555440129,-2145.25,0.00012328,2]
[326907375,1715555440139,-500.0,0.00012328,2]
[326907376,1715555440148,-515.12197012,0.00012328,2]
[326907377,1715555440158,-1233.41,0.00012328,2]
[326907378,1715555440168,-1233.41,0.00012328,2]
[326907379,1715555440178,-1233.41,0.00012328,2]
[326907380,1715555440187,-1233.41,0.00012328,2]
[326907381,1715555440197,-1233.41,0.00012328,2]
[326907382,1715555440207,-500.0,0.00012328,2]
[326907383,1715555440217,-500.0,0.00012328,2]
[326907384,1715555440226,-500.0,0.00012328,2]
[326907385,1715555440236,-500.0,0.00012328,2]
[326907386,1715555440246,-500.0,0.00012328,2]
[326907387,1715555440255,-367.51373144,0.00012328,2]
[326907388,1715555440265,-1380.74,0.00012328,2]
[326907389,1715555440275,-1380.74,0.00012328,2]
[326907390,1715555440284,-1380.74,0.00012328,2]
[326907391,1715555440293,-1380.74,0.00012328,2]
[326907392,1715555440303,-662.58494938,0.00012328,2]
[326907393,1715555440315,-718.15505062,0.00012328,2]
[326907394,1715555440324,-379.09751356,0.00012328,2]
[326907396,1715555440336,-120.90248644,0.00012328,2]
[326907399,1715555440346,-416.90228149,0.00012328,2]
[326907402,1715555440356,-164.16992315,0.00012328,2]
[326907404,1715555440367,-597.24,0.00012328,2]
[326907405,1715555440379,-556.34975306,0.00012328,2]
[326907406,1715555440391,-1340.01178555,0.00012328,2]
[326907407,1715555440402,-2151.33853824,0.00012328,2]
[326907408,1715555440412,-4809.11,0.00012328,2]
[326907409,1715555440422,-1609.15301569,0.00012328,2]
[326907410,1715555440433,-518.94618326,0.00012328,2]
[326907411,1715555440679,-384.83468693,0.00012228,2]
[326907412,1715555440691,-357.99,0.00012228,2]
[326907413,1715555440703,-667.34675804,0.00012228,2]
[326907414,1715555440715,-2842.77617614,0.00012228,2]
[326907416,1715555440980,-973.90638529,0.00012228,2]
[326907417,1715555440992,-431.58000001,0.00012228,2]
[326907451,1715555443614,-1841.56599359,0.00012228,2]
[326907452,1715555443623,-2681.01080105,0.00012328,2]
[326907453,1715555443632,-4809.11,0.00012328,2]
[326907454,1715555443641,-4809.11,0.00012328,2]
[326907455,1715555443651,-679.88,0.00012328,2]
[326907456,1715555443660,-679.88,0.00012328,2]
[326907457,1715555443669,-679.88,0.00012328,2]
[326907458,1715555443678,-679.88,0.00012328,2]
[326907459,1715555443688,-679.88,0.00012328,2]
[326907460,1715555443697,-4884.57,0.00012328,2]
[326907461,1715555443706,-4884.57,0.00012328,2]
[326907462,1715555443715,-4884.57,0.00012328,2]
[326907463,1715555443724,-4884.57,0.00012328,2]
[326907464,1715555443733,-4884.57,0.00012328,2]
[326907465,1715555443742,-661.63,0.00012328,2]
[326907466,1715555443751,-661.63,0.00012328,2]
[326907467,1715555443917,-661.63,0.00012328,2]
[326907468,1715555443934,-661.63,0.00012328,2]
[326907469,1715555443946,-661.63,0.00012328,2]
[326907470,1715555443955,-1886.58,0.00012328,2]
[326907471,1715555443965,-1886.58,0.00012328,2]
[326907472,1715555443975,-1886.58,0.00012328,2]
[326907473,1715555443985,-1886.58,0.00012328,2]
[326907474,1715555443995,-1886.58,0.00012328,2]
[326907475,1715555444004,-500.0,0.00012328,2]
[326907476,1715555444016,-500.0,0.00012328,2]
[326907477,1715555444025,-500.0,0.00012328,2]
[326907478,1715555444035,-500.0,0.00012328,2]
[326907479,1715555444045,-500.0,0.00012328,2]
[326907480,1715555444054,-3181.39,0.00012328,2]
[326907481,1715555444063,-3181.39,0.00012328,2]
[326907482,1715555444072,-3181.39,0.00012328,2]
[326907483,1715555444082,-3181.39,0.00012328,2]
[326907484,1715555444091,-3181.39,0.00012328,2]
[326907485,1715555444100,-3181.39,0.00012328,2]
[326907486,1715555444111,-3181.39,0.00012328,2]
[326907487,1715555444120,-3181.39,0.00012328,2]
[326907488,1715555444129,-3181.39,0.00012328,2]
[326907489,1715555444139,-3181.39,0.00012328,2]
[326907490,1715555444148,-193.0,0.00012329,2]
[326907491,1715555444158,-150.0,0.0001233,2]
[326907492,1715555444167,-150.82,0.0001233,2]
[326907493,1715555444177,-18045.13992122,0.00012347,2]
[326907494,1715555444187,-155.0,0.00012368,2]
[326907495,1715555444196,-281.0,0.00012385,2]
[326907496,1715555444206,-500.0,0.000124,2]
[326907497,1715555444215,-300.0,0.000124,2]
[326907498,1715555444224,-150.0,0.000124,2]
[326907499,1715555444234,-500.0,0.00012404,2]
[326907500,1715555444244,-500.0,0.00012404,2]
[326907501,1715555444253,-3939.28,0.00012404,2]
[326907502,1715555444262,-500.0,0.00012404,2]
[326907503,1715555444272,-1907.2,0.00012404,2]
[326907504,1715555444281,-500.0,0.00012404,2]
[326907505,1715555444291,-500.0,0.00012404,2]
[326907506,1715555444300,-4809.11,0.00012404,2]
[326907507,1715555444309,-1886.58,0.00012404,2]
[326907508,1715555444319,-1997.13,0.00012405,2]
[326907509,1715555444328,-1313.15,0.00012405,2]
[326907510,1715555444338,-1370.29,0.00012405,2]
[326907511,1715555444348,-522.69,0.00012405,2]
[326907512,1715555444357,-743.8,0.00012405,2]
[326907513,1715555444367,-151.0,0.00012405,2]
[326907514,1715555444377,-5699.62,0.00012405,2]
[326907515,1715555444386,-1850.43,0.00012405,2]
[326907516,1715555444396,-4288.85,0.00012405,2]
[326907517,1715555444405,-151.0,0.00012405,2]
[326907518,1715555444414,-2243.86,0.00012405,2]
[326907519,1715555444423,-12214.82,0.00012405,2]
[326907520,1715555444433,-501.27919613,0.00012405,2]
[326907521,1715555444443,-13347.34,0.00012405,2]
[326907522,1715555444452,-1119.59,0.00012405,2]
[326907523,1715555444462,-3360.31,0.00012405,2]
[326907524,1715555444471,-500.0,0.00012405,2]
[326907526,1715555444481,-1643.79,0.00012405,2]
[326907527,1715555444490,-829.4,0.00012405,2]
[326907528,1715555444500,-500.0,0.00012405,2]
[326907529,1715555444509,-963.49,0.00012405,2]
[326907530,1715555444519,-1159.84,0.00012405,2]
[326907531,1715555444527,-500.0,0.00012405,2]
[326907532,1715555444537,-1577.65,0.00012405,2]
[326907533,1715555444546,-2145.25,0.00012405,2]
[326907534,1715555444555,-1233.41,0.00012405,2]
[326907535,1715555444565,-1380.74,0.00012405,2]
[326907536,1715555444574,-679.88,0.00012405,2]
[326907537,1715555444584,-4884.57,0.00012405,2]
[326907538,1715555444593,-661.63,0.00012405,2]
[326907539,1715555444602,-500.0,0.00012405,2]
[326907540,1715555444612,-18045.13992122,0.00012406,2]
[326907541,1715555444621,-184.663044,0.00012406,2]
[326907542,1715555444630,-184.663044,0.00012406,2]
[326907543,1715555444640,-151.0,0.00012406,2]
[326907544,1715555444649,-151.0,0.00012406,2]
[326907545,1715555444658,-151.0,0.00012406,2]
[326907546,1715555444668,-151.0,0.00012406,2]
[326907547,1715555444677,-151.0,0.00012406,2]
[326907548,1715555444687,-10570.089778,0.0001242,2]
[326907549,1715555444696,-1189.603776,0.0001242,2]
[326907550,1715555444706,-267.361836,0.0001242,2]
[326907551,1715555444715,-281.0,0.00012445,2]
[326907552,1715555444725,-3181.39,0.00012463,2]
[326907553,1715555444736,-23374.54,0.00012464,2]
[326907554,1715555444745,-1727.88,0.00012464,2]
[326907555,1715555444755,-9734.44,0.00012464,2]
[326907556,1715555444765,-18045.13992122,0.00012465,2]
[326907557,1715555444776,-291.43489156,0.00012494,2]
[326907558,1715555444786,-252.12383117,0.000125,2]
[326907559,1715555444797,-12645.13966873,0.000125,2]
[326907560,1715555444807,-188.89008115,0.000125,2]
[326907561,1715555444817,-150.0,0.000125,2]
[326907562,1715555444827,-281.0,0.00012504,2]
[326907563,1715555444838,-18045.13992122,0.00012524,2]
[326907564,1715555444847,-281.0,0.00012563,2]
[326907565,1715555444856,-275.43765033,0.00012571,2]
[326907566,1715555444867,-263.06023858,0.00012571,2]
[326907567,1715555444876,-4317.5899919,0.00012571,2]
[326907568,1715555444888,-6138.71554752,0.00012571,2]
[326907569,1715555444901,-632.35568792,0.00012571,2]
[326907570,1715555444922,-3799.01854256,0.00012571,2]
[326907571,1715555444935,-1050.7288136,0.00012571,2]
[326907572,1715555444950,-138.8749624,0.00012571,2]
[326907573,1715555444959,-267.361836,0.00012571,2]
[326907574,1715555444968,-769.0238416,0.00012575,2]
[326907583,1715555446497,-896.151839,0.00012575,2]
[326907585,1715555446737,-146.5024356,0.00012575,2]
[326907586,1715555446747,-500.0,0.00012578,2]
[326907587,1715555446756,-457.3457254,0.00012578,2]
[326907588,1715555446768,-662.2442746,0.00012578,2]
[326907589,1715555446777,-500.0,0.00012578,2]
[326907590,1715555446787,-500.0,0.00012578,2]
[326907591,1715555446797,-3939.28,0.00012578,2]
[326907592,1715555446807,-1643.79,0.00012578,2]
[326907593,1715555446816,-500.0,0.00012578,2]
[326907594,1715555446826,-500.0,0.00012578,2]
[326907595,1715555446836,-1907.2,0.00012578,2]
[326907596,1715555446845,-963.49,0.00012578,2]
[326907597,1715555446854,-500.0,0.00012578,2]
[326907598,1715555446864,-500.0,0.00012578,2]
[326907599,1715555446874,-1577.65,0.00012578,2]
[326907600,1715555446883,-2145.25,0.00012578,2]
[326907601,1715555446893,-1233.41,0.00012578,2]
[326907602,1715555446902,-500.0,0.00012578,2]
[326907603,1715555446911,-1380.74,0.00012578,2]
[326907604,1715555446920,-4809.11,0.00012578,2]
[326907605,1715555446931,-679.88,0.00012578,2]
[326907606,1715555446942,-402.60662835,0.00012578,2]
[326907699,1715556631666,-580.86539022,0.00010461,2]
[326907700,1715556631679,-1748.01890978,0.00010461,2]
[326907701,1715556631689,-250.0,0.00010997,2]
[326907702,1715556631699,-3337.51,0.00011,2]
[326907703,1715556631709,-412.8,0.00011101,2]
[326907704,1715556631718,-151.15,0.00011115,2]
[326907705,1715556631727,-169.44,0.00011144,2]
[326907706,1715556631737,-150.0,0.00011163,2]
[326907707,1715556631747,-3649.9,0.00011164,2]
[326907708,1715556631756,-203.08,0.0001122,2]
[326907709,1715556631766,-151.15,0.00011308,2]
[326907710,1715556631775,-587.2,0.00011365,2]
[326907711,1715556631784,-7308.41987252,0.00011409,2]
[326907712,1715556631795,-4333.03702305,0.00011409,2]
[326907713,1715556631807,-666.96297695,0.00011409,2]
[326907714,1715556631817,-1665.3668126,0.00011409,2]
[326907715,1715556631829,-713.07366266,0.00011409,2]
[326907717,1715556631841,-893.59727248,0.00011409,2]
[326907719,1715556631853,-809.73333754,0.00011409,2]
[326907720,1715556631866,-918.22891472,0.00011409,2]
[326907721,1715556631875,-1526.03817104,0.00011409,2]
[326907722,1715556631889,-3473.96182896,0.00011409,2]
[326907723,1715556631900,-1435.87652554,0.00011409,2]
[326907724,1715556631913,-317.946002,0.00011409,2]
[326907725,1715556631925,-3246.17747246,0.00011409,2]
[326907726,1715556631934,-170.31,0.00011412,2]
[326907727,1715556631944,-150.99,0.00011412,2]
[326907729,1715556631954,-294.92405638,0.00011412,2]
[326907731,1715556631965,-593.41505923,0.00011412,2]
[326907733,1715556631976,-1262.010745,0.00011412,2]
[326907736,1715556631987,-1682.52013939,0.00011412,2]
[326907739,1715556631996,-151.15,0.00011502,2]
[326907742,1715556632005,-242.73,0.00011531,2]
[326907744,1715556632014,-1000.0,0.00011584,2]
[326907746,1715556632024,-151.15,0.00011695,2]
[326907748,1715556632033,-772.44986061,0.00011716,2]
[326907751,1715556632045,-2458.93688736,0.00011716,2]
[326907753,1715556632056,-251.61999996,0.00011716,2]
[326907771,1715556638131,-1205.93171034,0.00011716,2]
[326907772,1715556638141,-10000.0,0.00011726,2]
[326907773,1715556638151,-150.0,0.00012,2]
[326907774,1715556638161,-4365.67,0.00012,2]
[326907775,1715556638171,-164.210566,0.00012117,2]
[326907776,1715556638180,-19618.93418788,0.0001219,2]
[326907777,1715556638190,-5000.0,0.00012191,2]
[326907778,1715556638200,-840.32,0.00012192,2]
[326907779,1715556638210,-1820.1839,0.00012214,2]
[326907780,1715556638219,-1080.1711,0.00012239,2]
[326907781,1715556638228,-210.0,0.00012279,2]
[326907782,1715556638469,-200.0,0.00012312,2]
[326907783,1715556638480,-164.210566,0.00012319,2]
[326907784,1715556638491,-266.5,0.00012322,2]
[326907785,1715556638502,-157.051307,0.00012326,2]
[326907786,1715556638512,-157.051307,0.00012326,2]
[326907787,1715556638523,-157.051307,0.00012326,2]
[326907788,1715556638533,-157.051307,0.00012326,2]
[326907789,1715556638543,-157.051307,0.00012326,2]
[326907790,1715556638552,-157.051307,0.00012326,2]
[326907791,1715556638562,-157.051307,0.00012326,2]
[326907792,1715556638572,-157.051307,0.00012326,2]
[326907793,1715556638581,-157.051307,0.00012326,2]
[326907794,1715556638591,-157.051307,0.00012326,2]
[326907795,1715556638601,-157.051307,0.00012326,2]
[326907796,1715556638610,-157.051307,0.00012326,2]
[326907797,1715556638620,-157.051307,0.00012326,2]
[326907798,1715556638630,-1050.58716808,0.00012326,2]
[326907799,1715556638640,-3743.963,0.00012328,2]
[326907800,1715556638649,-3687.368,0.00012328,2]
[326907801,1715556638660,-500.0,0.00012328,2]
[326907802,1715556638670,-500.0,0.00012328,2]
[326907803,1715556638681,-500.0,0.00012328,2]
[326907804,1715556638691,-332.20419299,0.00012328,2]
[326907805,1715556638702,-1165.0,0.00012328,2]
[326907806,1715556638712,-799.33,0.00012328,2]
[326907807,1715556638721,-500.0,0.00012328,2]
[326907808,1715556638731,-766.01,0.00012328,2]
[326907809,1715556638740,-3324.78,0.00012328,2]
[326907810,1715556638750,-1308.92,0.00012328,2]
[326907811,1715556638759,-500.0,0.00012328,2]
[326907812,1715556638769,-374.84435102,0.00012328,2]
[326907813,1715556638780,-1723.26,0.00012328,2]
[326907814,1715556638790,-401.42749512,0.00012338,2]
[326907815,1715556638800,-222.38958652,0.00012338,2]
[326907816,1715556638810,-500.0,0.00012338,2]
[326907817,1715556638820,-500.0,0.00012338,2]
[326907818,1715556638829,-2859.23,0.00012338,2]
[326907819,1715556638838,-8143.21,0.00012338,2]
[326907820,1715556638850,-500.0,0.00012338,2]
[326907821,1715556638859,-8898.22,0.00012338,2]
[326907822,1715556638869,-3080.80552353,0.00012338,2]
[326907823,1715556638882,-5695.7437989,0.00012338,2]
[326907824,1715556638894,-3319.01570001,0.00012338,2]
[326907825,1715556638919,-838.75528515,0.00012338,2]
[326907826,1715556639956,-2758.11352494,0.00012338,2]
[326907827,1715556639974,-2032.2,0.00012338,2]
[326907828,1715556639986,-1197.61616747,0.00012338,2]
[326907829,1715556639996,-793.04,0.00012338,2]
[326907830,1715556640006,-2240.21,0.00012338,2]
[326907831,1715556640016,-500.0,0.00012338,2]
[326907832,1715556640026,-500.0,0.00012338,2]
[326907833,1715556640036,-500.0,0.00012338,2]
[326907834,1715556640046,-1151.92,0.00012338,2]
[326907835,1715556640056,-1164.35,0.00012338,2]
[326907836,1715556640065,-2790.33,0.00012338,2]
[326907837,1715556640075,-500.0,0.00012338,2]
[326907838,1715556640084,-500.0,0.00012338,2]
[326907839,1715556640094,-682.48,0.00012338,2]
[326907840,1715556640104,-6489.63,0.00012338,2]
[326907841,1715556640114,-1350.93,0.00012338,2]
[326907842,1715556640123,-500.0,0.00012338,2]
[326907843,1715556640133,-500.0,0.00012338,2]
[326907844,1715556640143,-1117.5,0.00012338,2]
[326907845,1715556640152,-1519.55,0.00012338,2]
[326907846,1715556640162,-500.0,0.00012338,2]
[326907847,1715556640172,-873.67,0.00012338,2]
[326907848,1715556640183,-978.03,0.00012338,2]
[326907849,1715556640193,-500.0,0.00012338,2]
[326907850,1715556640203,-3406.45,0.00012338,2]
[326907851,1715556640213,-3646.65,0.00012338,2]
[326907852,1715556640223,-500.0,0.00012338,2]
[326907853,1715556640232,-1414.93,0.00012338,2]
[326907854,1715556640242,-500.0,0.00012338,2]
[326907855,1715556640252,-253.0,0.00012339,2]
[326907856,1715556640262,-438.0,0.00012339,2]
[326907857,1715556640272,-422.0,0.00012339,2]
[326907858,1715556640282,-612.0,0.00012339,2]
[326907859,1715556640291,-809.0,0.00012339,2]
[326907860,1715556640300,-150.0,0.00012339,2]
[326907861,1715556640310,-1646.0,0.00012339,2]
[326907862,1715556640320,-150.0,0.00012339,2]
[326907863,1715556640330,-2433.0,0.00012339,2]
[326907864,1715556640339,-215.0,0.00012339,2]
[326907865,1715556640349,-444.0,0.00012339,2]
[326907866,1715556640359,-3156.0,0.00012339,2]
[326907867,1715556640370,-1138.0,0.00012339,2]
[326907868,1715556640380,-1398.0,0.00012339,2]
[326907869,1715556640390,-288.0,0.00012339,2]
[326907870,1715556640400,-5749.0,0.00012339,2]
[326907871,1715556640411,-973.0,0.00012339,2]
[326907872,1715556640421,-2157.0,0.00012339,2]
[326907873,1715556640435,-37831.0,0.00012339,2]
[326907874,1715556640446,-5911.0,0.00012339,2]
[326907875,1715556640457,-1463.0,0.00012339,2]
[326907876,1715556640467,-200.0,0.00012353,2]
[326907877,1715556640478,-1000.0,0.00012353,2]
[326907878,1715556640488,-500.0,0.00012353,2]
[326907879,1715556640499,-266.5,0.00012374,2]
[326907880,1715556640511,-326.79373082,0.00012404,2]
[326907881,1715556640520,-266.5,0.00012427,2]
[326907882,1715556640531,-175.17156179,0.00012452,2]
[326907883,1715556640541,-266.5,0.00012479,2]
[326907884,1715556640551,-412.8,0.00012488,2]
[326907885,1715556640561,-252.19620887,0.000125,2]
[326907886,1715556640571,-686.8984,0.00012515,2]
[326907887,1715556640581,-164.210566,0.00012521,2]
[326907888,1715556640591,-266.5,0.00012532,2]
[326907889,1715556640601,-150.0,0.00012535,2]
[326907890,1715556640611,-3509.8120901,0.00012571,2]
[326907891,1715556640621,-2413.5192936,0.00012571,2]
[326907892,1715556640631,-511.1362716,0.00012571,2]
[326907893,1715556640641,-150.01,0.00012577,2]
[326907894,1715556640651,-1180.22848729,0.00012577,2]
[326907895,1715556640661,-250.42777297,0.00012578,2]
[326907896,1715556640671,-180.32091532,0.00012578,2]
[326907897,1715556640681,-399.42482649,0.00012578,2]
[326907898,1715556640690,-19715.45682378,0.00012578,2]
[326907899,1715556640701,-500.0,0.00012578,2]
[326907900,1715556640711,-3000.0,0.00012578,2]
[326907901,1715556640720,-1165.0,0.00012578,2]
[326907902,1715556640730,-799.33,0.00012578,2]
[326907903,1715556640739,-500.0,0.00012578,2]
[326907904,1715556640749,-766.01,0.00012578,2]
[326907905,1715556640759,-3324.78,0.00012578,2]
[326907906,1715556640768,-1308.92,0.00012578,2]
[326907907,1715556640778,-500.0,0.00012578,2]
[326907908,1715556640787,-1723.26,0.00012578,2]
[326907909,1715556640797,-500.0,0.00012579,2]
[326907910,1715556640806,-500.0,0.00012579,2]
[326907911,1715556640815,-2859.23,0.00012579,2]
[326907912,1715556640826,-8143.21,0.00012579,2]
[326907913,1715556640836,-500.0,0.00012579,2]
[326907914,1715556640845,-8898.22,0.00012579,2]
[326907915,1715556640855,-18922.25,0.00012579,2]
[326907916,1715556640864,-793.04,0.00012579,2]
[326907917,1715556640873,-2240.21,0.00012579,2]
[326907918,1715556640883,-500.0,0.00012579,2]
[326907919,1715556640893,-500.0,0.00012579,2]
[326907920,1715556640903,-500.0,0.00012579,2]
[326907921,1715556640912,-1151.92,0.00012579,2]
[326907922,1715556640922,-1164.35,0.00012579,2]
[326907923,1715556640931,-2790.33,0.00012579,2]
[326907924,1715556640941,-500.0,0.00012579,2]
[326907925,1715556640951,-500.0,0.00012579,2]
[326907926,1715556640961,-682.48,0.00012579,2]
[326907927,1715556640971,-6489.63,0.00012579,2]
[326907928,1715556640980,-1350.93,0.00012579,2]
[326907929,1715556640989,-500.0,0.00012579,2]
[326907930,1715556640999,-500.0,0.00012579,2]
[326907931,1715556641008,-1117.5,0.00012579,2]
[326907932,1715556641017,-1519.55,0.00012579,2]
[326907933,1715556641027,-500.0,0.00012579,2]
[326907934,1715556641036,-873.67,0.00012579,2]
[326907935,1715556641046,-978.03,0.00012579,2]
[326907936,1715556641055,-500.0,0.00012579,2]
[326907937,1715556641064,-3406.45,0.00012579,2]
[326907938,1715556641074,-3646.65,0.00012579,2]
[326907939,1715556641084,-500.0,0.00012579,2]
[326907940,1715556641093,-1414.93,0.00012579,2]
[326907941,1715556641103,-500.0,0.00012579,2]
[326907942,1715556641112,-153868.04191493,0.0001258,2]
[326907944,1715556641121,-18045.13992122,0.00012584,2]
[326907945,1715556641131,-266.5,0.00012584,2]
[326907948,1715556641140,-26616.60747464,0.00012597,2]
[326907950,1715556641150,-500.0,0.000126,2]
[326907952,1715556641159,-203.08,0.00012622,2]
[326907954,1715556641168,-266.5,0.00012637,2]
[326907955,1715556641178,-500.0,0.0001264,2]
[326907957,1715556641187,-1165.0,0.0001264,2]